fUSD/lending_fUSD_20240523
["ID","MTS","AMOUNT","RATE_DAILY","PERIOD"]
[327754907,1716432659042,-1920.12,0.000228,2]
[327754908,1716432659052,-152.51987662,0.0002281,2]
[327754909,1716432659061,-232.45250762,0.00022842,2]
[327754910,1716432659071,-166.50553877,0.00022913,2]
[327754911,1716432659080,-1702.39881562,0.00022928,2]
[327754912,1716432659090,-333.49233576,0.00022938,2]
[327754913,1716432659099,-154.99328839,0.0002294,2]
[327754914,1716432659109,-392.0,0.0002295,2]
[327754915,1716432659119,-232.45250762,0.00022951,2]
[327754916,1716432659130,-160.57154211,0.00022962,2]
[327754917,1716432659140,-881.43134916,0.00022981,2]
[327754918,1716432659149,-164.06085028,0.00022991,2]
[327754919,1716432659158,-166.66666667,0.00022994,2]
[327754920,1716432659171,-10578.6773895,0.00023,2]
[327754921,1716432659180,-2800.0,0.00023,2]
[327754922,1716432659189,-150.0,0.00023,3]
[327754923,1716432659199,-150.0,0.00023012,2]
[327754924,1716432659208,-86134.53201469,0.00023013,11]
[327754925,1716432659217,-500.0,0.00023013,2]
[327754926,1716432659227,-180.94553129,0.00023013,2]
[327754927,1716432659236,-500.0,0.00023013,2]
[327754928,1716432659246,-500.0,0.00023013,2]
[327754929,1716432659256,-441.83716983,0.00023013,2]
[327754930,1716432659267,-500.0,0.00023013,2]
[327754931,1716432659276,-500.0,0.00023013,2]
[327754932,1716432659286,-500.0,0.00023013,2]
[327754933,1716432659295,-1288.33,0.00023013,2]
[327754934,1716432659304,-316.1218921,0.00023013,2]
[327754935,1716432659314,-500.0,0.00023013,2]
[327754936,1716432659323,-500.0,0.00023013,2]
[327754937,1716432659333,-500.0,0.00023013,2]
[327754938,1716432659342,-500.0,0.00023013,2]
[327754939,1716432659352,-500.0,0.00023013,2]
[327754940,1716432659361,-1232.58,0.00023013,2]
[327754941,1716432659371,-620.56278963,0.00023013,2]
[327754942,1716432659381,-708.02,0.00023013,2]
[327754943,1716432659391,-500.0,0.00023013,2]
[327754944,1716432659402,-1941.35,0.00023013,2]
[327754945,1716432659411,-168.02844753,0.00023013,2]
[327754946,1716432659421,-578.8,0.00023013,2]
[327754947,1716432659431,-500.0,0.00023013,2]
[327754948,1716432659441,-500.0,0.00023013,2]
[327754949,1716432659450,-549.84,0.00023013,2]
[327754950,1716432659459,-500.0,0.00023013,2]
[327754951,1716432659468,-500.0,0.00023013,2]
[327754952,1716432659478,-1949.84,0.00023013,2]
[327754953,1716432659488,-854.74,0.00023013,2]
[327754954,1716432659497,-500.0,0.00023013,2]
[327754955,1716432659507,-683.02,0.00023013,2]
[327754956,1716432659519,-335.97751058,0.00023013,2]
[327754957,1716432659528,-1713.52,0.00023013,2]
[327754958,1716432659538,-500.0,0.00023013,2]
[327754959,1716432659547,-740.18,0.00023013,2]
[327754960,1716432659556,-500.0,0.00023013,2]
[327754961,1716432659567,-791.87,0.00023013,2]
[327754962,1716432659576,-512.39,0.00023013,2]
[327754963,1716432659586,-500.0,0.00023013,2]
[327754964,1716432659598,-500.0,0.00023013,2]
[327754965,1716432659607,-500.0,0.00023013,2]
[327754966,1716432659618,-500.0,0.00023013,2]
[327754967,1716432659628,-500.0,0.00023013,2]
[327754968,1716432659637,-500.0,0.00023013,2]
[327754969,1716432659647,-500.0,0.00023013,2]
[327754970,1716432659656,-559.16,0.00023013,2]
[327754971,1716432659666,-500.0,0.00023013,2]
[327754972,1716432659675,-500.0,0.00023013,2]
[327754973,1716432659684,-500.0,0.00023013,2]
[327754974,1716432659695,-500.0,0.00023013,2]
[327754975,1716432659706,-500.0,0.00023013,2]
[327754976,1716432659716,-500.0,0.00023013,2]
[327754977,1716432659727,-500.0,0.00023013,2]
[327754978,1716432659736,-500.0,0.00023013,2]
[327754979,1716432659746,-500.0,0.00023013,2]
[327754980,1716432659755,-636.15,0.00023013,2]
[327754981,1716432659765,-290.70733135,0.00023013,2]
[327754982,1716432659775,-881.15,0.00023013,2]
[327754983,1716432659784,-922.68,0.00023013,2]
[327754984,1716432659794,-500.0,0.00023013,2]
[327754985,1716432659803,-3262.56,0.00023013,2]
[327754986,1716432659813,-788.42,0.00023013,2]
[327754987,1716432659822,-589.99,0.00023013,2]
[327754988,1716432659832,-500.0,0.00023013,2]
[327754989,1716432659841,-500.0,0.00023013,2]
[327754990,1716432659851,-500.0,0.00023013,2]
[327754991,1716432659860,-500.0,0.00023013,2]
[327754992,1716432659870,-508.01368996,0.00023013,2]
[327754993,1716432659879,-500.0,0.00023013,2]
[327754994,1716432659889,-500.0,0.00023013,2]
[327754995,1716432659900,-500.0,0.00023013,2]
[327754996,1716432659909,-302.1948578,0.00023013,2]
[327754997,1716432659919,-500.0,0.00023013,2]
[327754998,1716432659930,-500.0,0.00023013,2]
[327754999,1716432659940,-500.0,0.00023013,2]
[327755000,1716432659949,-500.0,0.00023013,2]
[327755001,1716432659959,-500.0,0.00023013,2]
[327755002,1716432659968,-500.0,0.00023013,2]
[327755003,1716432659977,-500.0,0.00023013,2]
[327755004,1716432659987,-500.0,0.00023013,2]
[327755005,1716432660091,-500.0,0.00023013,2]
[327755006,1716432660102,-500.0,0.00023013,2]
[327755007,1716432660111,-500.0,0.00023013,2]
[327755008,1716432660121,-323.84047485,0.00023013,2]
[327755009,1716432660130,-500.0,0.00023013,2]
[327755010,1716432660139,-500.0,0.00023013,2]
[327755011,1716432660148,-663.29,0.00023013,2]
[327755012,1716432660158,-500.0,0.00023013,2]
[327755013,1716432660167,-827.51,0.00023013,2]
[327755014,1716432660177,-654.97,0.00023013,2]
[327755015,1716432660186,-500.0,0.00023013,2]
[327755016,1716432660196,-500.0,0.00023013,2]
[327755017,1716432660206,-500.0,0.00023013,2]
[327755018,1716432660215,-641.52,0.00023013,2]
[327755019,1716432660224,-500.0,0.00023013,2]
[327755020,1716432660234,-500.0,0.00023013,2]
[327755021,1716432660244,-500.0,0.00023013,2]
[327755022,1716432660254,-500.0,0.00023013,2]
[327755023,1716432660265,-660.72,0.00023013,2]
[327755024,1716432660274,-579.29,0.00023013,2]
[327755025,1716432660284,-500.0,0.00023013,2]
[327755026,1716432660295,-590.2,0.00023013,2]
[327755027,1716432660306,-500.0,0.00023013,2]
[327755028,1716432660316,-500.0,0.00023013,2]
[327755029,1716432660326,-1606.22,0.00023013,2]
[327755030,1716432660335,-500.0,0.00023013,2]
[327755031,1716432660345,-500.0,0.00023013,2]
[327755032,1716432660355,-500.0,0.00023013,2]
[327755033,1716432660365,-500.0,0.00023013,2]
[327755034,1716432660375,-500.0,0.00023013,2]
[327755035,1716432660385,-500.0,0.00023013,2]
[327755036,1716432660394,-500.0,0.00023013,2]
[327755037,1716432660404,-500.0,0.00023013,2]
[327755038,1716432660414,-500.0,0.00023013,2]
[327755039,1716432660424,-500.0,0.00023013,2]
[327755040,1716432660433,-500.0,0.00023013,2]
[327755041,1716432660443,-500.0,0.00023013,2]
[327755042,1716432660452,-500.0,0.00023013,2]
[327755043,1716432660463,-500.0,0.00023013,2]
[327755044,1716432660473,-500.0,0.00023013,2]
[327755045,1716432660482,-500.0,0.00023013,2]
[327755046,1716432660492,-500.0,0.00023013,2]
[327755047,1716432660502,-500.0,0.00023013,2]
[327755048,1716432660513,-500.0,0.00023013,2]
[327755049,1716432660526,-500.0,0.00023013,2]
[327755050,1716432660535,-500.0,0.00023013,2]
[327755051,1716432660544,-500.0,0.00023013,2]
[327755052,1716432660555,-500.0,0.00023013,2]
[327755053,1716432660564,-500.0,0.00023013,2]
[327755054,1716432660574,-500.0,0.00023013,2]
[327755055,1716432660583,-500.0,0.00023013,2]
[327755056,1716432660594,-500.0,0.00023013,2]
[327755057,1716432660604,-500.0,0.00023013,2]
[327755058,1716432660613,-500.0,0.00023013,2]
[327755059,1716432660623,-500.0,0.00023013,2]
[327755060,1716432660633,-500.0,0.00023013,2]
[327755061,1716432660642,-500.0,0.00023013,2]
[327755062,1716432660651,-500.0,0.00023013,2]
[327755063,1716432660662,-500.0,0.00023013,2]
[327755064,1716432660671,-1524.72,0.00023013,2]
[327755065,1716432660681,-500.0,0.00023013,2]
[327755066,1716432660691,-500.0,0.00023013,2]
[327755067,1716432660701,-500.0,0.00023013,2]
[327755068,1716432660710,-500.0,0.00023013,2]
[327755069,1716432660720,-500.0,0.00023013,2]
[327755070,1716432660729,-522.92596458,0.00023013,2]
[327755071,1716432660738,-262.56,0.00023013,2]
[327755072,1716432660748,-500.0,0.00023013,2]
[327755073,1716432660758,-251.30323964,0.00023013,2]
[327755074,1716432660768,-500.0,0.00023013,2]
[327755075,1716432660777,-500.0,0.00023013,2]
[327755076,1716432660786,-500.0,0.00023013,2]
[327755077,1716432660797,-500.0,0.00023013,2]
[327755078,1716432660806,-500.0,0.00023013,2]
[327755079,1716432660816,-500.0,0.00023013,2]
[327755080,1716432660827,-500.0,0.00023013,2]
[327755081,1716432660836,-500.0,0.00023013,2]
[327755082,1716432660845,-500.0,0.00023013,2]
[327755083,1716432660854,-500.0,0.00023013,2]
[327755084,1716432660863,-500.0,0.00023013,2]
[327755085,1716432660873,-500.0,0.00023013,2]
[327755086,1716432660882,-500.0,0.00023013,2]
[327755087,1716432660891,-500.0,0.00023013,2]
[327755088,1716432660901,-500.0,0.00023013,2]
[327755089,1716432660911,-500.0,0.00023013,2]
[327755090,1716432660922,-500.0,0.00023013,2]
[327755091,1716432660932,-500.0,0.00023013,2]
[327755092,1716432660942,-500.0,0.00023013,2]
[327755093,1716432660952,-500.0,0.00023013,2]
[327755094,1716432660962,-500.0,0.00023013,2]
[327755095,1716432660971,-500.0,0.00023013,2]
[327755096,1716432660980,-500.0,0.00023013,2]
[327755097,1716432660990,-927.84,0.00023013,2]
[327755098,1716432661000,-642.52,0.00023013,2]
[327755099,1716432661011,-500.0,0.00023013,2]
[327755100,1716432661020,-817.98,0.00023013,2]
[327755101,1716432661031,-500.0,0.00023013,2]
[327755102,1716432661041,-500.0,0.00023013,2]
[327755103,1716432661051,-500.0,0.00023013,2]
[327755104,1716432661060,-500.0,0.00023013,2]
[327755105,1716432661070,-552.1,0.00023013,2]
[327755106,1716432661079,-1577.19,0.00023013,2]
[327755107,1716432661089,-572.34250273,0.00023013,2]
[327755108,1716432661098,-500.0,0.00023013,2]
[327755109,1716432661108,-500.0,0.00023013,2]
[327755110,1716432661117,-500.0,0.00023013,2]
[327755111,1716432661126,-500.0,0.00023013,2]
[327755112,1716432661136,-1189.63,0.00023013,2]
[327755113,1716432661145,-706.04,0.00023013,2]
[327755114,1716432661155,-500.0,0.00023013,2]
[327755115,1716432661165,-1375.34,0.00023013,2]
[327755116,1716432661174,-681.11,0.00023013,2]
[327755117,1716432661184,-500.0,0.00023013,2]
[327755118,1716432661193,-2368.11,0.00023013,2]
[327755119,1716432661202,-545.65,0.00023013,2]
[327755120,1716432661211,-500.0,0.00023013,2]
[327755121,1716432661221,-553.59,0.00023013,2]
[327755122,1716432661230,-500.0,0.00023013,2]
[327755123,1716432661239,-500.0,0.00023013,2]
[327755124,1716432661249,-850.66,0.00023013,2]
[327755125,1716432661258,-603.91,0.00023013,2]
[327755126,1716432661267,-1474.23,0.00023013,2]
[327755127,1716432661276,-500.0,0.00023013,2]
[327755128,1716432661286,-9892.35,0.00023013,2]
[327755129,1716432661295,-631.25,0.00023013,2]
[327755130,1716432661305,-1819.25,0.00023013,2]
[327755131,1716432661315,-500.0,0.00023013,2]
[327755132,1716432661324,-500.0,0.00023013,2]
[327755133,1716432661333,-500.0,0.00023013,2]
[327755134,1716432661343,-510.74,0.00023013,2]
[327755135,1716432661352,-500.0,0.00023013,2]
[327755136,1716432661361,-423.41771651,0.00023013,2]
[327755137,1716432661371,-500.0,0.00023013,2]
[327755138,1716432661381,-500.0,0.00023013,2]
[327755139,1716432661392,-500.0,0.00023013,2]
[327755140,1716432661402,-507.14,0.00023013,2]
[327755141,1716432661411,-755.13,0.00023013,2]
[327755142,1716432661421,-3419.56,0.00023013,2]
[327755143,1716432661431,-500.0,0.00023013,2]
[327755144,1716432661442,-644.53,0.00023013,2]
[327755145,1716432661451,-500.0,0.00023013,2]
[327755146,1716432661460,-618.49,0.00023013,2]
[327755147,1716432661470,-500.0,0.00023013,2]
[327755148,1716432661479,-639.58,0.00023013,2]
[327755149,1716432661488,-5605.18,0.00023013,2]
[327755150,1716432661498,-500.0,0.00023013,2]
[327755151,1716432661509,-3848.47,0.00023013,2]
[327755152,1716432661524,-500.0,0.00023013,2]
[327755153,1716432661534,-500.0,0.00023013,2]
[327755154,1716432661543,-500.0,0.00023013,2]
[327755155,1716432661552,-500.0,0.00023013,2]
[327755156,1716432661562,-500.0,0.00023013,2]
[327755157,1716432661572,-500.0,0.00023013,2]
[327755158,1716432661581,-972.37,0.00023013,2]
[327755159,1716432661590,-500.0,0.00023013,2]
[327755160,1716432661604,-552.38,0.00023013,2]
[327755161,1716432661614,-500.0,0.00023013,2]
[327755162,1716432661623,-705.43,0.00023013,2]
[327755163,1716432661632,-4365.07,0.00023013,2]
[327755164,1716432661642,-500.0,0.00023013,2]
[327755165,1716432661651,-500.0,0.00023013,2]
[327755166,1716432661661,-1949.72,0.00023013,2]
[327755167,1716432661670,-500.0,0.00023013,2]
[327755168,1716432661680,-500.0,0.00023013,2]
[327755169,1716432661689,-500.0,0.00023013,2]
[327755170,1716432661698,-500.0,0.00023013,2]
[327755171,1716432661707,-500.0,0.00023013,2]
[327755172,1716432661716,-836.28,0.00023013,2]
[327755173,1716432661726,-1217.93,0.00023013,2]
[327755174,1716432661735,-500.0,0.00023013,2]
[327755175,1716432661744,-500.0,0.00023013,2]
[327755176,1716432661754,-500.0,0.00023013,2]
[327755177,1716432661765,-651.01,0.00023013,2]
[327755178,1716432661774,-500.0,0.00023013,2]
[327755179,1716432661783,-500.0,0.00023013,2]
[327755180,1716432661793,-818.52,0.00023013,2]
[327755181,1716432661802,-500.0,0.00023013,2]
[327755182,1716432661812,-500.0,0.00023013,2]
[327755183,1716432661821,-500.0,0.00023013,2]
[327755184,1716432661832,-860.87,0.00023013,2]
[327755185,1716432661841,-500.0,0.00023013,2]
[327755186,1716432661851,-1049.77,0.00023013,2]
[327755187,1716432661861,-667.48,0.00023013,2]
[327755188,1716432661870,-500.0,0.00023013,2]
[327755189,1716432661879,-858.38,0.00023013,2]
[327755190,1716432661890,-500.0,0.00023013,2]
[327755191,1716432661899,-500.0,0.00023013,2]
[327755192,1716432661908,-500.0,0.00023013,2]
[327755193,1716432661918,-569.63,0.00023013,2]
[327755194,1716432661927,-500.0,0.00023013,2]
[327755195,1716432661936,-500.0,0.00023013,2]
[327755196,1716432661945,-344.2,0.00023013,2]
[327755197,1716432661954,-500.0,0.00023013,2]
[327755198,1716432661963,-668.87,0.00023013,2]
[327755199,1716432661972,-1035.81,0.00023013,2]
[327755200,1716432661981,-1426.39,0.00023013,2]
[327755201,1716432661991,-407.89495569,0.00023013,2]
[327755202,1716432662000,-991.74,0.00023013,2]
[327755203,1716432662011,-500.0,0.00023013,2]
[327755204,1716432662020,-500.0,0.00023013,2]
[327755205,1716432662030,-1283.32,0.00023013,2]
[327755206,1716432662039,-500.0,0.00023013,2]
[327755207,1716432662048,-500.0,0.00023013,2]
[327755208,1716432662057,-500.0,0.00023013,2]
[327755209,1716432662067,-2650.38,0.00023013,2]
[327755210,1716432662076,-719.97,0.00023013,2]
[327755211,1716432662086,-500.0,0.00023013,2]
[327755212,1716432662095,-3769.04,0.00023013,2]
[327755213,1716432662105,-796.14,0.00023013,2]
[327755214,1716432662115,-500.0,0.00023013,2]
[327755215,1716432662125,-500.0,0.00023013,2]
[327755216,1716432662134,-606.35,0.00023013,2]
[327755217,1716432662144,-657.85,0.00023013,2]
[327755218,1716432662153,-500.0,0.00023013,2]
[327755219,1716432662163,-1868.32,0.00023013,2]
[327755220,1716432662172,-667.33,0.00023013,2]
[327755221,1716432662182,-550.28,0.00023013,2]
[327755222,1716432662191,-500.0,0.00023013,2]
[327755223,1716432662201,-508.08,0.00023013,2]
[327755224,1716432662210,-500.0,0.00023013,2]
[327755225,1716432662219,-1164.2,0.00023013,2]
[327755226,1716432662228,-500.0,0.00023013,2]
[327755227,1716432662238,-705.51,0.00023013,2]
[327755228,1716432662247,-500.0,0.00023013,2]
[327755229,1716432662257,-500.0,0.00023013,2]
[327755230,1716432662267,-500.0,0.00023013,2]
[327755231,1716432662276,-512.21,0.00023013,2]
[327755232,1716432662285,-500.0,0.00023013,2]
[327755233,1716432662295,-500.0,0.00023013,2]
[327755234,1716432662305,-2362.28,0.00023013,2]
[327755235,1716432662315,-500.0,0.00023013,2]
[327755236,1716432662324,-500.0,0.00023013,2]
[327755237,1716432662334,-776.78,0.00023013,2]
[327755238,1716432662344,-500.0,0.00023013,2]
[327755239,1716432662353,-794.05,0.00023013,2]
[327755240,1716432662363,-500.0,0.00023013,2]
[327755241,1716432662372,-509.63,0.00023013,2]
[327755242,1716432662382,-500.0,0.00023013,2]
[327755243,1716432662391,-521.29,0.00023013,2]
[327755244,1716432662400,-272.51468989,0.00023013,2]
[327755245,1716432662410,-809.18,0.00023013,2]
[327755246,1716432662419,-424.91514527,0.00023013,2]
[327755247,1716432662429,-1435.08,0.00023013,2]
[327755248,1716432662439,-625.57,0.00023013,2]
[327755249,1716432662448,-734.15,0.00023013,2]
[327755250,1716432662457,-1174.34,0.00023013,2]
[327755251,1716432662467,-652.81,0.00023013,2]
[327755252,1716432662476,-747.59,0.00023013,2]
[327755253,1716432662485,-500.0,0.00023013,2]
[327755254,1716432662495,-500.0,0.00023013,2]
[327755255,1716432662505,-585.21,0.00023013,2]
[327755256,1716432662517,-500.0,0.00023013,2]
[327755257,1716432662528,-3383.27,0.00023013,2]
[327755258,1716432662537,-500.0,0.00023013,2]
[327755259,1716432662547,-284.62841725,0.00023013,2]
[327755260,1716432662556,-891.97,0.00023013,2]
[327755261,1716432662566,-809.95,0.00023013,2]
[327755262,1716432662575,-792.86,0.00023013,2]
[327755263,1716432662585,-196.308723,0.00023014,2]
[327755264,1716432662599,-881.43134916,0.0002302,2]
[327755265,1716432662609,-160.0,0.0002304,8]
[327755266,1716432662619,-182.95330127,0.00023108,2]
[327755267,1716432662630,-150.0,0.00023115,2]
[327755268,1716432662639,-167.99941386,0.00023135,2]
[327755269,1716432662649,-1702.39881562,0.00023173,2]
[327755270,1716432662658,-182.95330127,0.00023179,2]
[327755271,1716432662667,-152.51987662,0.00023192,2]
[327755272,1716432662677,-333.49233576,0.00023218,2]
[327755273,1716432662687,-152.9643382,0.00023241,2]
[327755274,1716432662696,-5647.87856341,0.0002327,2]
[327755275,1716432662706,-924.80049643,0.0002327,2]
[327755276,1716432662715,-500.0,0.00023287,2]
[327755277,1716432662724,-231.33,0.00023287,2]
[327755278,1716432662733,-500.0,0.00023287,2]
[327755279,1716432662741,-500.0,0.00023287,2]
[327755280,1716432662751,-627.18018578,0.00023287,2]
[327755281,1716432662761,-500.0,0.00023287,2]
[327755282,1716432662770,-1288.33,0.00023287,2]
[327755283,1716432662779,-500.0,0.00023287,2]
[327755284,1716432662788,-500.0,0.00023287,2]
[327755285,1716432662798,-500.0,0.00023287,2]
[327755286,1716432662807,-301.97707601,0.00023287,2]
[327755287,1716432662816,-1232.58,0.00023287,2]
[327755288,1716432662825,-708.02,0.00023287,2]
[327755289,1716432662835,-208.15149827,0.00023287,2]
[327755290,1716432662843,-1941.35,0.00023287,2]
[327755291,1716432662853,-578.8,0.00023287,2]
[327755292,1716432662862,-500.0,0.00023287,2]
[327755293,1716432662871,-500.0,0.00023287,2]
[327755294,1716432662880,-549.84,0.00023287,2]
[327755295,1716432662889,-500.0,0.00023287,2]
[327755296,1716432662898,-500.0,0.00023287,2]
[327755297,1716432662908,-1949.84,0.00023287,2]
[327755298,1716432662917,-854.74,0.00023287,2]
[327755299,1716432662926,-500.0,0.00023287,2]
[327755300,1716432662936,-683.02,0.00023287,2]
[327755301,1716432662946,-1713.52,0.00023287,2]
[327755302,1716432662955,-500.0,0.00023287,2]
[327755303,1716432662964,-740.18,0.00023287,2]
[327755304,1716432662973,-500.0,0.00023287,2]
[327755305,1716432662982,-791.87,0.00023287,2]
[327755306,1716432662990,-512.39,0.00023287,2]
[327755307,1716432662999,-500.0,0.00023287,2]
[327755308,1716432663011,-500.0,0.00023287,2]
[327755309,1716432663020,-500.0,0.00023287,2]
[327755310,1716432663029,-500.0,0.00023287,2]
[327755311,1716432663037,-500.0,0.00023287,2]
[327755312,1716432663046,-500.0,0.00023287,2]
[327755313,1716432663056,-500.0,0.00023287,2]
[327755314,1716432663065,-559.16,0.00023287,2]
[327755315,1716432663074,-500.0,0.00023287,2]
[327755316,1716432663083,-500.0,0.00023287,2]
[327755317,1716432663093,-500.0,0.00023287,2]
[327755318,1716432663102,-500.0,0.00023287,2]
[327755319,1716432663111,-500.0,0.00023287,2]
[327755320,1716432663120,-500.0,0.00023287,2]
[327755321,1716432663130,-500.0,0.00023287,2]
[327755322,1716432663139,-500.0,0.00023287,2]
[327755323,1716432663148,-500.0,0.00023287,2]
[327755324,1716432663157,-636.15,0.00023287,2]
[327755325,1716432663167,-881.15,0.00023287,2]
[327755326,1716432663178,-922.68,0.00023287,2]
[327755327,1716432663189,-455.21152292,0.00023287,2]
[327755328,1716432663199,-3262.56,0.00023287,2]
[327755329,1716432663209,-788.42,0.00023287,2]
[327755330,1716432663219,-589.99,0.00023287,2]
[327755331,1716432663229,-500.0,0.00023287,2]
[327755332,1716432663239,-500.0,0.00023287,2]
[327755333,1716432663248,-500.0,0.00023287,2]
[327755334,1716432663262,-500.0,0.00023287,2]
[327755335,1716432663272,-500.0,0.00023287,2]
[327755336,1716432663283,-464.77395763,0.00023287,2]
[327755337,1716432663293,-500.0,0.00023287,2]
[327755338,1716432663301,-500.0,0.00023287,2]
[327755339,1716432663311,-500.0,0.00023287,2]
[327755340,1716432663320,-500.0,0.00023287,2]
[327755341,1716432663331,-500.0,0.00023287,2]
[327755342,1716432663340,-500.0,0.00023287,2]
[327755343,1716432663349,-592.63115162,0.00023287,2]
[327755344,1716432663359,-500.0,0.00023287,2]
[327755345,1716432663368,-500.0,0.00023287,2]
[327755346,1716432663379,-500.0,0.00023287,2]
[327755347,1716432663388,-500.0,0.00023287,2]
[327755348,1716432663397,-500.0,0.00023287,2]
[327755349,1716432663407,-500.0,0.00023287,2]
[327755350,1716432663416,-500.0,0.00023287,2]
[327755351,1716432663426,-663.29,0.00023287,2]
[327755352,1716432663435,-500.0,0.00023287,2]
[327755353,1716432663444,-827.51,0.00023287,2]
[327755354,1716432663454,-654.97,0.00023287,2]
[327755355,1716432663463,-500.0,0.00023287,2]
[327755356,1716432663472,-500.0,0.00023287,2]
[327755357,1716432663481,-500.0,0.00023287,2]
[327755358,1716432663491,-641.52,0.00023287,2]
[327755359,1716432663501,-593.32058319,0.00023287,2]
[327755360,1716432663512,-500.0,0.00023287,2]
[327755361,1716432663525,-500.0,0.00023287,2]
[327755362,1716432663534,-500.0,0.00023287,2]
[327755363,1716432663544,-660.72,0.00023287,2]
[327755364,1716432663553,-579.29,0.00023287,2]
[327755365,1716432663564,-500.0,0.00023287,2]
[327755366,1716432663573,-590.2,0.00023287,2]
[327755367,1716432663582,-500.0,0.00023287,2]
[327755368,1716432663591,-500.0,0.00023287,2]
[327755369,1716432663604,-1606.22,0.00023287,2]
[327755370,1716432663616,-500.0,0.00023287,2]
[327755371,1716432663625,-500.0,0.00023287,2]
[327755372,1716432663635,-500.0,0.00023287,2]
[327755373,1716432663645,-500.0,0.00023287,2]
[327755374,1716432663654,-500.0,0.00023287,2]
[327755375,1716432663664,-500.0,0.00023287,2]
[327755376,1716432663674,-524.65754737,0.00023287,2]
[327755377,1716432663683,-500.0,0.00023287,2]
[327755378,1716432663694,-500.0,0.00023287,2]
[327755379,1716432663703,-500.0,0.00023287,2]
[327755380,1716432663714,-500.0,0.00023287,2]
[327755381,1716432663723,-500.0,0.00023287,2]
[327755382,1716432663733,-500.0,0.00023287,2]
[327755383,1716432663743,-500.0,0.00023287,2]
[327755384,1716432663753,-500.0,0.00023287,2]
[327755385,1716432663767,-500.0,0.00023287,2]
[327755386,1716432663777,-500.0,0.00023287,2]
[327755387,1716432663787,-500.0,0.00023287,2]
[327755388,1716432663798,-500.0,0.00023287,2]
[327755389,1716432663810,-500.0,0.00023287,2]
[327755390,1716432663820,-500.0,0.00023287,2]
[327755391,1716432663829,-500.0,0.00023287,2]
[327755392,1716432663839,-500.0,0.00023287,2]
[327755393,1716432663848,-500.0,0.00023287,2]
[327755394,1716432663858,-500.0,0.00023287,2]
[327755395,1716432663868,-500.0,0.00023287,2]
[327755396,1716432663877,-500.0,0.00023287,2]
[327755397,1716432663887,-241.59613646,0.00023287,2]
[327755398,1716432663897,-500.0,0.00023287,2]
[327755399,1716432663906,-500.0,0.00023287,2]
[327755400,1716432663916,-500.0,0.00023287,2]
[327755401,1716432663926,-500.0,0.00023287,2]
[327755402,1716432663937,-500.0,0.00023287,2]
[327755403,1716432663949,-500.0,0.00023287,2]
[327755404,1716432663961,-1524.72,0.00023287,2]
[327755405,1716432663970,-500.0,0.00023287,2]
[327755406,1716432663980,-500.0,0.00023287,2]